[Event "Titled Tuesday Blitz February 15 Late 2022"]
[White "Dubov, Daniil"]
[Black "Tang, Andrew"]
[WhiteFideId "24126055"]
[BlackFideId "2059630"]
[WhiteElo "2791"]
[BlackElo "2584"]
[Result "1-0"]
[Round "08"]
[TimeControl "180+1"]
[Date "2022.02.15"]
[WhiteClock "0:00:40"]
[BlackClock "0:00:04"]

1. d4 {[%clk 0:02:59]}  d5 {[%clk 0:02:59]} 2. Bf4 {[%clk 0:03:00]}  Nf6 {[%clk 0:02:52]} 3. e3 {[%clk 0:02:59]}  e6 {[%clk 0:02:53]} 4. Nf3 {[%clk 0:02:59]}  Bd6 {[%clk 0:02:54]} 5. Bg3 {[%clk 0:02:59]}  O-O {[%clk 0:02:53]} 6. Nbd2 {[%clk 0:02:58]}  c5 {[%clk 0:02:54]} 7. c3 {[%clk 0:02:57]}  Qc7 {[%clk 0:02:54]} 8. Bd3 {[%clk 0:02:51]}  Nbd7 {[%clk 0:02:53]} 9. Bh4 {[%clk 0:02:45]}  b6 {[%clk 0:02:42]} 10. O-O {[%clk 0:02:42]}  Bb7 {[%clk 0:02:41]} 11. Qb1 {[%clk 0:02:42]}  h6 {[%clk 0:02:41]} 12. Re1 {[%clk 0:02:37]}  Rac8 {[%clk 0:01:40]} 13. a3 {[%clk 0:02:36]}  Rfe8 {[%clk 0:01:26]} 14. b4 {[%clk 0:02:22]}  cxd4 {[%clk 0:01:20]} 15. cxd4 {[%clk 0:02:22]}  Qb8 {[%clk 0:01:05]} 16. Qb2 {[%clk 0:02:17]}  Rc7 {[%clk 0:01:04]} 17. Bg3 {[%clk 0:02:14]}  Bxg3 {[%clk 0:01:00]} 18. hxg3 {[%clk 0:02:15]}  Rec8 {[%clk 0:01:00]} 19. Rac1 {[%clk 0:02:14]}  Ne8 {[%clk 0:00:56]} 20. g4 {[%clk 0:01:51]}  Nd6 {[%clk 0:00:51]} 21. g5 {[%clk 0:01:47]}  Nc4 {[%clk 0:00:47]} 22. Bxc4 {[%clk 0:01:37]}  dxc4 {[%clk 0:00:47]} 23. Rc3 {[%clk 0:01:38]}  b5 {[%clk 0:00:31]} 24. gxh6 {[%clk 0:01:34]}  Nb6 {[%clk 0:00:31]} 25. e4 {[%clk 0:01:25]}  Na4 {[%clk 0:00:29]} 26. Qc1 {[%clk 0:01:26]}  Nxc3 {[%clk 0:00:23]} 27. Qxc3 {[%clk 0:01:27]}  f6 {[%clk 0:00:20]} 28. d5 {[%clk 0:01:17]}  exd5 {[%clk 0:00:15]} 29. e5 {[%clk 0:01:17]}  Re7 {[%clk 0:00:10]} 30. hxg7 {[%clk 0:01:15]}  Rce8 {[%clk 0:00:06]} 31. e6 {[%clk 0:00:47]}  Rxe6 {[%clk 0:00:04]} 32. Rxe6 {[%clk 0:00:48]}  Rxe6 {[%clk 0:00:05]} 33. Nd4 {[%clk 0:00:47]}  Re1+ {[%clk 0:00:05]} 34. Nf1 {[%clk 0:00:47]}  Qe5 {[%clk 0:00:05]} 35. Qd2 {[%clk 0:00:41]}  Re4 {[%clk 0:00:06]} 36. Qh6 {[%clk 0:00:41]}  Qg5 {[%clk 0:00:04]} 37. Qh8+ {[%clk 0:00:40]}  Kf7 {[%clk 0:00:04]} 38. Qf8+ {[%clk 0:00:40]} 1-0


[Site "https://www.chess.com"]

[Event "Titled Tuesday Blitz February 15 Late 2022"]
[White "Ezat, Mohamed"]
[Black "Kavyev, Ruslan"]
[WhiteFideId "10600906"]
[BlackFideId "34110981"]
[WhiteElo "2386"]
[BlackElo "2182"]
[Result "0-1"]
[Round "08"]
[TimeControl "180+1"]
[Date "2022.02.15"]
[WhiteClock "0:00:13"]
[BlackClock "0:00:05"]

1. d4 {[%clk 0:03:00]}  Nf6 {[%clk 0:03:00]} 2. c4 {[%clk 0:03:01]}  g6 {[%clk 0:03:00]} 3. Nc3 {[%clk 0:03:01]}  Bg7 {[%clk 0:02:59]} 4. e4 {[%clk 0:03:02]}  d6 {[%clk 0:03:00]} 5. Be2 {[%clk 0:03:02]}  O-O {[%clk 0:03:00]} 6. Bg5 {[%clk 0:03:01]}  c5 {[%clk 0:03:00]} 7. d5 {[%clk 0:03:01]}  b5 {[%clk 0:02:58]} 8. cxb5 {[%clk 0:02:58]}  a6 {[%clk 0:02:58]} 9. a4 {[%clk 0:02:58]}  Qa5 {[%clk 0:02:52]} 10. Bd2 {[%clk 0:02:57]}  axb5 {[%clk 0:02:49]} 11. Bxb5 {[%clk 0:02:55]}  e6 {[%clk 0:02:48]} 12. Nf3 {[%clk 0:02:53]}  Qb6 {[%clk 0:02:45]} 13. dxe6 {[%clk 0:02:49]}  Bxe6 {[%clk 0:02:44]} 14. O-O {[%clk 0:02:47]}  Nc6 {[%clk 0:02:43]} 15. Bf4 {[%clk 0:02:46]}  Rfd8 {[%clk 0:02:41]} 16. Nd5 {[%clk 0:02:44]}  Bxd5 {[%clk 0:02:39]} 17. exd5 {[%clk 0:02:43]}  Nb4 {[%clk 0:02:39]} 18. Nd2 {[%clk 0:02:43]}  Nfxd5 {[%clk 0:02:38]} 19. Nc4 {[%clk 0:02:43]}  Qc7 {[%clk 0:02:31]} 20. Bg3 {[%clk 0:02:42]}  Nb6 {[%clk 0:02:19]} 21. Bxd6 {[%clk 0:02:32]}  Qb7 {[%clk 0:02:13]} 22. Re1 {[%clk 0:01:48]}  Nxc4 {[%clk 0:01:56]} 23. Bxc4 {[%clk 0:01:47]}  Bf8 {[%clk 0:01:51]} 24. Bxf8 {[%clk 0:01:37]}  Rxd1 {[%clk 0:01:51]} 25. Raxd1 {[%clk 0:01:37]}  Kxf8 {[%clk 0:01:46]} 26. b3 {[%clk 0:01:38]}  Re8 {[%clk 0:01:44]} 27. Rxe8+ {[%clk 0:01:33]}  Kxe8 {[%clk 0:01:44]} 28. g3 {[%clk 0:01:33]}  Qf3 {[%clk 0:01:42]} 29. Rd6 {[%clk 0:01:33]}  Nc2 {[%clk 0:01:32]} 30. a5 {[%clk 0:01:31]}  Ne1 {[%clk 0:01:12]} 31. Kf1 {[%clk 0:01:30]}  Qh1+ {[%clk 0:01:12]} 32. Ke2 {[%clk 0:01:29]}  Nc2 {[%clk 0:01:08]} 33. a6 {[%clk 0:01:18]}  Nd4+ {[%clk 0:00:59]} 34. Kd2 {[%clk 0:01:16]}  Qa1 {[%clk 0:00:54]} 35. Kd3 {[%clk 0:01:00]}  Qb1+ {[%clk 0:00:52]} 36. Ke3 {[%clk 0:01:00]}  Qe1+ {[%clk 0:00:50]} 37. Kf4 {[%clk 0:00:50]}  Qxf2+ {[%clk 0:00:44]} 38. Kg5 {[%clk 0:00:43]}  Qe3+ {[%clk 0:00:38]} 39. Kg4 {[%clk 0:00:40]}  Qf3+ {[%clk 0:00:23]} 40. Kh3 {[%clk 0:00:40]}  g5 {[%clk 0:00:15]} 41. Bd5 {[%clk 0:00:35]}  Qf5+ {[%clk 0:00:09]} 42. Kg2 {[%clk 0:00:32]}  Nc2 {[%clk 0:00:09]} 43. Bf3 {[%clk 0:00:26]}  Ne1+ {[%clk 0:00:09]} 44. Kf1 {[%clk 0:00:24]}  Nxf3 {[%clk 0:00:07]} 45. a7 {[%clk 0:00:23]}  Nd4+ {[%clk 0:00:07]} 46. Kg2 {[%clk 0:00:22]}  Qf3+ {[%clk 0:00:07]} 47. Kh3 {[%clk 0:00:22]}  Ne2 {[%clk 0:00:05]} 48. Rd4 {[%clk 0:00:13]}  Ng1# {[%clk 0:00:05]} 0-1


[Site "https://www.chess.com"]

[Event "Titled Tuesday Blitz February 15 Late 2022"]
[White "Fishbein, Alexander"]
[Black "Yedidia, Daniel"]
[WhiteFideId "2000377"]
[BlackFideId "30905907"]
[WhiteElo "2442"]
[BlackElo "2501"]
[Result "1-0"]
[Round "08"]
[TimeControl "180+1"]
[Date "2022.02.16"]
[WhiteClock "0:00:35"]
[BlackClock "0:00:03"]

1. e4 {[%clk 0:03:00]}  e5 {[%clk 0:02:57]} 2. Nf3 {[%clk 0:03:00]}  Nc6 {[%clk 0:02:55]} 3. Bb5 {[%clk 0:02:59]}  a6 {[%clk 0:02:56]} 4. Ba4 {[%clk 0:02:59]}  Nf6 {[%clk 0:02:55]} 5. O-O {[%clk 0:03:00]}  Be7 {[%clk 0:02:55]} 6. Re1 {[%clk 0:02:57]}  b5 {[%clk 0:02:55]} 7. Bb3 {[%clk 0:02:57]}  O-O {[%clk 0:02:56]} 8. d4 {[%clk 0:02:57]}  d6 {[%clk 0:02:51]} 9. c3 {[%clk 0:02:56]}  Bg4 {[%clk 0:02:48]} 10. Be3 {[%clk 0:02:56]}  Na5 {[%clk 0:02:32]} 11. dxe5 {[%clk 0:02:54]}  Bxf3 {[%clk 0:02:24]} 12. Qxf3 {[%clk 0:02:52]}  dxe5 {[%clk 0:02:16]} 13. Bc2 {[%clk 0:02:52]}  Nc4 {[%clk 0:02:15]} 14. Bc1 {[%clk 0:02:53]}  Bc5 {[%clk 0:02:14]} 15. b3 {[%clk 0:02:50]}  Nd6 {[%clk 0:02:12]} 16. Bg5 {[%clk 0:02:48]}  h6 {[%clk 0:02:12]} 17. Bh4 {[%clk 0:02:44]}  Qe7 {[%clk 0:02:11]} 18. b4 {[%clk 0:02:38]}  Bb6 {[%clk 0:02:10]} 19. Bb3 {[%clk 0:02:37]}  Rac8 {[%clk 0:02:04]} 20. Nd2 {[%clk 0:02:26]}  Rfd8 {[%clk 0:02:03]} 21. Nf1 {[%clk 0:02:23]}  c5 {[%clk 0:02:01]} 22. Ne3 {[%clk 0:02:20]}  g5 {[%clk 0:01:55]} 23. Bg3 {[%clk 0:02:15]}  c4 {[%clk 0:01:45]} 24. Bc2 {[%clk 0:02:14]}  Bxe3 {[%clk 0:01:43]} 25. Qxe3 {[%clk 0:02:09]}  Nh5 {[%clk 0:01:34]} 26. f3 {[%clk 0:02:05]}  Nxg3 {[%clk 0:01:28]} 27. hxg3 {[%clk 0:02:06]}  Qc7 {[%clk 0:01:22]} 28. a4 {[%clk 0:02:03]}  Rd7 {[%clk 0:01:17]} 29. Red1 {[%clk 0:02:00]}  Rcd8 {[%clk 0:01:16]} 30. Rd5 {[%clk 0:01:59]}  f6 {[%clk 0:00:47]} 31. axb5 {[%clk 0:01:51]}  axb5 {[%clk 0:00:46]} 32. Ra6 {[%clk 0:01:39]}  Qb7 {[%clk 0:00:23]} 33. Qb6 {[%clk 0:01:27]}  Qxb6+ {[%clk 0:00:15]} 34. Rxb6 {[%clk 0:01:28]}  Nf7 {[%clk 0:00:09]} 35. Rbxb5 {[%clk 0:01:18]}  Rxd5 {[%clk 0:00:09]} 36. exd5 {[%clk 0:01:17]}  Kf8 {[%clk 0:00:08]} 37. Rc5 {[%clk 0:01:11]}  Nd6 {[%clk 0:00:08]} 38. Rc7 {[%clk 0:01:06]}  Ke8 {[%clk 0:00:06]} 39. Bg6+ {[%clk 0:01:05]}  Kf8 {[%clk 0:00:06]} 40. Kh2 {[%clk 0:00:51]}  f5 {[%clk 0:00:05]} 41. g4 {[%clk 0:00:44]}  fxg4 {[%clk 0:00:05]} 42. Kg3 {[%clk 0:00:41]}  gxf3 {[%clk 0:00:05]} 43. gxf3 {[%clk 0:00:41]}  Nb5 {[%clk 0:00:03]} 44. Rxc4 {[%clk 0:00:41]}  Rxd5 {[%clk 0:00:03]} 45. Kg4 {[%clk 0:00:35]} 1-0


[Site "https://www.chess.com"]

[Event "Titled Tuesday Blitz February 15 Late 2022"]
[White "Gerbelli Neto, Eduardo"]
[Black "Desideri, Ricardo Maruchi"]
[WhiteFideId "2103281"]
[BlackFideId "2110440"]
[WhiteElo "2178"]
[BlackElo "1945"]
[Result "1-0"]
[Round "08"]
[TimeControl "180+1"]
[Date "2022.02.16"]
[WhiteClock "0:02:09"]
[BlackClock "0:00:17"]

1. e4 {[%clk 0:02:56]}  c5 {[%clk 0:02:59]} 2. Nc3 {[%clk 0:02:54]}  d6 {[%clk 0:02:58]} 3. f4 {[%clk 0:02:55]}  g6 {[%clk 0:02:56]} 4. Nf3 {[%clk 0:02:56]}  Bg7 {[%clk 0:02:56]} 5. Bb5+ {[%clk 0:02:56]}  Nd7 {[%clk 0:02:55]} 6. O-O {[%clk 0:02:55]}  a6 {[%clk 0:02:54]} 7. Bc4 {[%clk 0:02:54]}  b5 {[%clk 0:02:53]} 8. Bd5 {[%clk 0:02:54]}  Rb8 {[%clk 0:02:50]} 9. f5 {[%clk 0:02:54]}  Nb6 {[%clk 0:02:41]} 10. fxg6 {[%clk 0:02:53]}  e6 {[%clk 0:02:18]} 11. gxf7+ {[%clk 0:02:52]}  Kxf7 {[%clk 0:02:18]} 12. Ng5+ {[%clk 0:02:46]}  Kg6 {[%clk 0:01:42]} 13. Nxe6 {[%clk 0:02:41]}  Bxe6 {[%clk 0:01:38]} 14. Bxe6 {[%clk 0:02:42]}  Nf6 {[%clk 0:01:33]} 15. Qf3 {[%clk 0:02:28]}  Bh6 {[%clk 0:00:48]} 16. Qg3+ {[%clk 0:02:19]}  Bg5 {[%clk 0:00:40]} 17. h4 {[%clk 0:02:15]}  h6 {[%clk 0:00:37]} 18. d3 {[%clk 0:02:08]}  Nh5 {[%clk 0:00:20]} 19. Bf7+ {[%clk 0:02:08]}  Kh7 {[%clk 0:00:17]} 20. Bxh5 {[%clk 0:02:09]} 1-0


[Site "https://www.chess.com"]

[Event "Titled Tuesday Blitz February 15 Late 2022"]
[White "Goltseva, Ekaterina"]
[Black "Sarana, Alexey"]
[WhiteFideId "24173770"]
[BlackFideId "24133795"]
[WhiteElo "2140"]
[BlackElo "2665"]
[Result "0-1"]
[Round "08"]
[TimeControl "180+1"]
[Date "2022.02.15"]
[WhiteClock "0:00:02"]
[BlackClock "0:00:10"]

1. d4 {[%clk 0:03:00]}  Nf6 {[%clk 0:02:37]} 2. c4 {[%clk 0:02:59]}  e6 {[%clk 0:02:34]} 3. Nc3 {[%clk 0:02:54]}  Bb4 {[%clk 0:02:31]} 4. e3 {[%clk 0:02:46]}  d5 {[%clk 0:02:27]} 5. Bd2 {[%clk 0:02:46]}  O-O {[%clk 0:02:18]} 6. Nf3 {[%clk 0:02:45]}  c5 {[%clk 0:02:18]} 7. cxd5 {[%clk 0:02:43]}  exd5 {[%clk 0:02:17]} 8. Bd3 {[%clk 0:02:43]}  c4 {[%clk 0:02:14]} 9. Bc2 {[%clk 0:02:42]}  Nc6 {[%clk 0:02:14]} 10. O-O {[%clk 0:02:42]}  Bd6 {[%clk 0:02:14]} 11. h3 {[%clk 0:02:41]}  Re8 {[%clk 0:02:11]} 12. b3 {[%clk 0:02:37]}  Nb4 {[%clk 0:02:04]} 13. bxc4 {[%clk 0:02:36]}  dxc4 {[%clk 0:02:03]} 14. e4 {[%clk 0:02:33]}  Nxc2 {[%clk 0:02:03]} 15. Qxc2 {[%clk 0:02:32]}  Bb4 {[%clk 0:02:04]} 16. e5 {[%clk 0:02:25]}  Bxc3 {[%clk 0:01:57]} 17. Qxc3 {[%clk 0:02:23]}  Nd5 {[%clk 0:01:57]} 18. Qxc4 {[%clk 0:02:23]}  b6 {[%clk 0:01:58]} 19. Bg5 {[%clk 0:02:18]}  Qd7 {[%clk 0:01:57]} 20. Rac1 {[%clk 0:02:14]}  Bb7 {[%clk 0:01:57]} 21. Rfe1 {[%clk 0:02:11]}  h6 {[%clk 0:01:56]} 22. Bd2 {[%clk 0:02:09]}  Qe6 {[%clk 0:01:53]} 23. Qd3 {[%clk 0:02:01]}  Rad8 {[%clk 0:01:52]} 24. Nh4 {[%clk 0:01:58]}  Rd7 {[%clk 0:01:45]} 25. Nf5 {[%clk 0:01:55]}  Qg6 {[%clk 0:01:45]} 26. f3 {[%clk 0:01:38]}  Kh7 {[%clk 0:01:40]} 27. Qb1 {[%clk 0:01:31]}  Ba6 {[%clk 0:01:21]} 28. Nd6 {[%clk 0:01:23]}  Re6 {[%clk 0:01:18]} 29. Qxg6+ {[%clk 0:01:18]}  Rxg6 {[%clk 0:01:18]} 30. Kf2 {[%clk 0:01:13]}  h5 {[%clk 0:01:07]} 31. g4 {[%clk 0:01:12]}  Re6 {[%clk 0:00:57]} 32. f4 {[%clk 0:01:10]}  f6 {[%clk 0:00:51]} 33. Ne4 {[%clk 0:00:52]}  Bd3 {[%clk 0:00:47]} 34. f5 {[%clk 0:00:50]}  Re8 {[%clk 0:00:45]} 35. Nd6 {[%clk 0:00:42]}  Ree7 {[%clk 0:00:43]} 36. Rc8 {[%clk 0:00:38]}  Ba6 {[%clk 0:00:40]} 37. Rf8 {[%clk 0:00:33]}  Rc7 {[%clk 0:00:34]} 38. g5 {[%clk 0:00:28]}  fxg5 {[%clk 0:00:27]} 39. Bxg5 {[%clk 0:00:27]}  Red7 {[%clk 0:00:27]} 40. Ne8 {[%clk 0:00:18]}  Rc2+ {[%clk 0:00:27]} 41. Kg3 {[%clk 0:00:18]}  Nc3 {[%clk 0:00:15]} 42. Nd6 {[%clk 0:00:10]}  Ne2+ {[%clk 0:00:14]} 43. Kh4 {[%clk 0:00:09]}  Nxd4 {[%clk 0:00:13]} 44. Kxh5 {[%clk 0:00:07]}  Be2+ {[%clk 0:00:12]} 45. Kh4 {[%clk 0:00:04]}  Nf3+ {[%clk 0:00:12]} 46. Kg3 {[%clk 0:00:04]}  Nxe1 {[%clk 0:00:12]} 47. e6 {[%clk 0:00:04]}  Rxd6 {[%clk 0:00:12]} 48. e7 {[%clk 0:00:04]}  Bb5 {[%clk 0:00:12]} 49. Rd8 {[%clk 0:00:03]}  Rg2+ {[%clk 0:00:11]} 50. Kf4 {[%clk 0:00:02]}  Rc6 {[%clk 0:00:11]} 51. Rh8+ {[%clk 0:00:01]}  Kxh8 {[%clk 0:00:11]} 52. e8=Q+ {[%clk 0:00:01]}  Kh7 {[%clk 0:00:12]} 53. Qh5+ {[%clk 0:00:02]}  Rh6 {[%clk 0:00:10]} 54. Bxh6 {[%clk 0:00:02]}  Nd3+ {[%clk 0:00:10]} 0-1


[Site "https://www.chess.com"]

[Event "Titled Tuesday Blitz February 15 Late 2022"]
[White "Golubev, Mikhail"]
[Black "Tari, Aryan"]
[WhiteFideId "14100983"]
[BlackFideId "1510045"]
[WhiteElo "2374"]
[BlackElo "2567"]
[Result "0-1"]
[Round "08"]
[TimeControl "180+1"]
[Date "2022.02.15"]
[WhiteClock "0:00:04"]
[BlackClock "0:01:07"]

1. e4 {[%clk 0:03:00]}  c6 {[%clk 0:02:53]} 2. d4 {[%clk 0:02:59]}  d5 {[%clk 0:02:53]} 3. e5 {[%clk 0:02:56]}  Bf5 {[%clk 0:02:52]} 4. h4 {[%clk 0:02:56]}  c5 {[%clk 0:02:51]} 5. g4 {[%clk 0:02:45]}  Bd7 {[%clk 0:02:50]} 6. dxc5 {[%clk 0:02:44]}  Nc6 {[%clk 0:02:50]} 7. f4 {[%clk 0:02:40]}  h5 {[%clk 0:02:50]} 8. f5 {[%clk 0:02:32]}  Nxe5 {[%clk 0:02:48]} 9. Qxd5 {[%clk 0:02:23]}  Bc6 {[%clk 0:02:17]} 10. Qxe5 {[%clk 0:02:23]}  Bxh1 {[%clk 0:02:17]} 11. g5 {[%clk 0:02:15]}  Bc6 {[%clk 0:02:12]} 12. Nc3 {[%clk 0:02:11]}  Qb8 {[%clk 0:02:01]} 13. Bf4 {[%clk 0:02:04]}  Qxe5+ {[%clk 0:02:00]} 14. Bxe5 {[%clk 0:02:05]}  f6 {[%clk 0:01:59]} 15. Bf4 {[%clk 0:01:59]}  e5 {[%clk 0:01:59]} 16. fxe6 {[%clk 0:01:54]}  Bxc5 {[%clk 0:01:59]} 17. Nb5 {[%clk 0:01:41]}  O-O-O {[%clk 0:01:46]} 18. Nh3 {[%clk 0:00:20]}  Ne7 {[%clk 0:01:41]} 19. gxf6 {[%clk 0:00:12]}  gxf6 {[%clk 0:01:42]} 20. Bc7 {[%clk 0:00:09]}  Rdg8 {[%clk 0:01:09]} 21. O-O-O {[%clk 0:00:07]}  Bxb5 {[%clk 0:01:07]} 22. Bxb5 {[%clk 0:00:06]}  Kxc7 {[%clk 0:01:08]} 23. Nf4 {[%clk 0:00:04]}  Rd8 {[%clk 0:01:07]} 0-1


[Site "https://www.chess.com"]

[Event "Titled Tuesday Blitz February 15 Late 2022"]
[White "Hambleton, Aman"]
[Black "Jones, Gawain C B"]
[WhiteFideId "2606577"]
[BlackFideId "409561"]
[WhiteElo "2552"]
[BlackElo "2657"]
[Result "1-0"]
[Round "08"]
[TimeControl "180+1"]
[Date "2022.02.15"]
[WhiteClock "0:00:05"]
[BlackClock "0:00:02"]

1. d4 {[%clk 0:03:00]}  Nf6 {[%clk 0:02:59]} 2. Bf4 {[%clk 0:02:59]}  c5 {[%clk 0:02:58]} 3. e3 {[%clk 0:02:58]}  g6 {[%clk 0:02:57]} 4. c3 {[%clk 0:02:57]}  Bg7 {[%clk 0:02:57]} 5. Nf3 {[%clk 0:02:52]}  b6 {[%clk 0:02:56]} 6. h3 {[%clk 0:02:47]}  Bb7 {[%clk 0:02:56]} 7. Bd3 {[%clk 0:02:46]}  O-O {[%clk 0:02:55]} 8. O-O {[%clk 0:02:44]}  d6 {[%clk 0:02:56]} 9. Nbd2 {[%clk 0:02:42]}  Nbd7 {[%clk 0:02:53]} 10. Bh2 {[%clk 0:02:40]}  e5 {[%clk 0:02:47]} 11. dxe5 {[%clk 0:02:25]}  dxe5 {[%clk 0:02:46]} 12. e4 {[%clk 0:02:21]}  Nh5 {[%clk 0:02:44]} 13. Re1 {[%clk 0:02:20]}  Qf6 {[%clk 0:02:32]} 14. Bb5 {[%clk 0:01:58]}  Bc6 {[%clk 0:02:31]} 15. Qa4 {[%clk 0:01:35]}  Bxb5 {[%clk 0:02:30]} 16. Qxb5 {[%clk 0:01:36]}  Rfd8 {[%clk 0:02:30]} 17. a4 {[%clk 0:01:24]}  Nf4 {[%clk 0:02:27]} 18. Bxf4 {[%clk 0:01:06]}  exf4 {[%clk 0:02:25]} 19. e5 {[%clk 0:01:06]}  Qf5 {[%clk 0:02:12]} 20. Nc4 {[%clk 0:01:02]}  Qe6 {[%clk 0:01:58]} 21. Rad1 {[%clk 0:00:41]}  a6 {[%clk 0:01:53]} 22. Qb3 {[%clk 0:00:40]}  b5 {[%clk 0:01:40]} 23. axb5 {[%clk 0:00:25]}  Nb6 {[%clk 0:01:39]} 24. Na5 {[%clk 0:00:21]}  Qxb3 {[%clk 0:01:16]} 25. Nxb3 {[%clk 0:00:21]}  c4 {[%clk 0:01:11]} 26. Nbd4 {[%clk 0:00:19]}  Na4 {[%clk 0:01:08]} 27. bxa6 {[%clk 0:00:06]}  Nxb2 {[%clk 0:00:59]} 28. Ra1 {[%clk 0:00:05]}  Nd3 {[%clk 0:01:00]} 29. Re2 {[%clk 0:00:04]}  Rd5 {[%clk 0:00:47]} 30. a7 {[%clk 0:00:02]}  Nxe5 {[%clk 0:00:44]} 31. Nxe5 {[%clk 0:00:02]}  Bxe5 {[%clk 0:00:44]} 32. Nc6 {[%clk 0:00:02]}  Bxc3 {[%clk 0:00:41]} 33. Rc1 {[%clk 0:00:02]}  Rd3 {[%clk 0:00:38]} 34. Re4 {[%clk 0:00:01]}  f3 {[%clk 0:00:16]} 35. gxf3 {[%clk 0:00:01]}  Kg7 {[%clk 0:00:10]} 36. Rxc4 {[%clk 0:00:01]}  Bf6 {[%clk 0:00:10]} 37. Rb1 {[%clk 0:00:02]}  Rd7 {[%clk 0:00:05]} 38. Rb8 {[%clk 0:00:01]}  Raxa7 {[%clk 0:00:06]} 39. Nxa7 {[%clk 0:00:01]}  Rxa7 {[%clk 0:00:06]} 40. Rbc8 {[%clk 0:00:01]}  Ra3 {[%clk 0:00:06]} 41. Kg2 {[%clk 0:00:02]}  Ra5 {[%clk 0:00:06]} 42. R8c7 {[%clk 0:00:02]}  Rg5+ {[%clk 0:00:05]} 43. Kf1 {[%clk 0:00:02]}  Rf5 {[%clk 0:00:06]} 44. Kg2 {[%clk 0:00:03]}  Rg5+ {[%clk 0:00:06]} 45. Rg4 {[%clk 0:00:03]}  Rf5 {[%clk 0:00:06]} 46. Rb7 {[%clk 0:00:04]}  h5 {[%clk 0:00:06]} 47. Rc4 {[%clk 0:00:04]}  Rg5+ {[%clk 0:00:06]} 48. Kf1 {[%clk 0:00:04]}  Rf5 {[%clk 0:00:07]} 49. Ke2 {[%clk 0:00:04]}  Re5+ {[%clk 0:00:06]} 50. Re4 {[%clk 0:00:04]}  Ra5 {[%clk 0:00:06]} 51. Rc4 {[%clk 0:00:02]}  Re5+ {[%clk 0:00:05]} 52. Kd3 {[%clk 0:00:02]}  Rf5 {[%clk 0:00:04]} 53. f4 {[%clk 0:00:03]}  Rd5+ {[%clk 0:00:03]} 54. Ke4 {[%clk 0:00:03]}  Rd2 {[%clk 0:00:03]} 55. Rcc7 {[%clk 0:00:03]}  g5 {[%clk 0:00:01]} 56. Rxf7+ {[%clk 0:00:04]}  Kg6 {[%clk 0:00:02]} 57. f5+ {[%clk 0:00:04]}  Kh6 {[%clk 0:00:02]} 58. Rh7# {[%clk 0:00:05]} 1-0


[Site "https://www.chess.com"]

[Event "Titled Tuesday Blitz February 15 Late 2022"]
[White "Dronavalli, Harika"]
[Black "Yoo, Christopher Woojin"]
[WhiteFideId "5015197"]
[BlackFideId "30909694"]
[WhiteElo "2382"]
[BlackElo "2105"]
[Result "0-1"]
[Round "08"]
[TimeControl "180+1"]
[Date "2022.02.15"]
[WhiteClock "0:00:15"]
[BlackClock "0:00:07"]

1. d4 {[%clk 0:03:00]}  Nf6 {[%clk 0:02:58]} 2. c4 {[%clk 0:03:00]}  e6 {[%clk 0:02:58]} 3. Nc3 {[%clk 0:03:00]}  d5 {[%clk 0:02:57]} 4. Bg5 {[%clk 0:02:58]}  Be7 {[%clk 0:02:53]} 5. e3 {[%clk 0:02:58]}  O-O {[%clk 0:02:53]} 6. Qc2 {[%clk 0:02:58]}  h6 {[%clk 0:02:50]} 7. Bxf6 {[%clk 0:02:56]}  Bxf6 {[%clk 0:02:50]} 8. Nf3 {[%clk 0:02:57]}  c5 {[%clk 0:02:38]} 9. Rd1 {[%clk 0:02:52]}  cxd4 {[%clk 0:02:27]} 10. Nxd4 {[%clk 0:02:53]}  Nc6 {[%clk 0:02:27]} 11. cxd5 {[%clk 0:02:45]}  Nxd4 {[%clk 0:02:24]} 12. exd4 {[%clk 0:02:45]}  exd5 {[%clk 0:02:24]} 13. Be2 {[%clk 0:02:45]}  Be6 {[%clk 0:02:24]} 14. Qb3 {[%clk 0:02:39]}  Qd7 {[%clk 0:01:52]} 15. O-O {[%clk 0:02:38]}  Rfd8 {[%clk 0:01:52]} 16. Bf3 {[%clk 0:02:35]}  Rac8 {[%clk 0:01:52]} 17. Be2 {[%clk 0:02:09]}  Qc7 {[%clk 0:01:24]} 18. Rfe1 {[%clk 0:02:04]}  a6 {[%clk 0:01:21]} 19. Bf3 {[%clk 0:01:54]}  Qc4 {[%clk 0:01:18]} 20. Qxc4 {[%clk 0:01:48]}  Rxc4 {[%clk 0:01:17]} 21. Ne2 {[%clk 0:01:46]}  g5 {[%clk 0:01:08]} 22. h3 {[%clk 0:01:33]}  Rc2 {[%clk 0:01:07]} 23. Rb1 {[%clk 0:01:33]}  Rdc8 {[%clk 0:00:58]} 24. a4 {[%clk 0:01:28]}  Rd2 {[%clk 0:00:54]} 25. b4 {[%clk 0:01:18]}  b5 {[%clk 0:00:40]} 26. axb5 {[%clk 0:01:18]}  axb5 {[%clk 0:00:41]} 27. Red1 {[%clk 0:01:11]}  Rxd1+ {[%clk 0:00:34]} 28. Rxd1 {[%clk 0:01:11]}  Rc4 {[%clk 0:00:34]} 29. Rb1 {[%clk 0:01:07]}  Be7 {[%clk 0:00:32]} 30. Ra1 {[%clk 0:00:46]}  Rxb4 {[%clk 0:00:28]} 31. g4 {[%clk 0:00:43]}  Bf6 {[%clk 0:00:27]} 32. Ra8+ {[%clk 0:00:41]}  Kg7 {[%clk 0:00:25]} 33. Rb8 {[%clk 0:00:38]}  Bxd4 {[%clk 0:00:24]} 34. Nxd4 {[%clk 0:00:38]}  Rxd4 {[%clk 0:00:25]} 35. Rxb5 {[%clk 0:00:38]}  Kf6 {[%clk 0:00:24]} 36. Rb8 {[%clk 0:00:30]}  Rd3 {[%clk 0:00:19]} 37. Kg2 {[%clk 0:00:30]}  Kg7 {[%clk 0:00:02]} 38. Rd8 {[%clk 0:00:29]}  Rd2 {[%clk 0:00:02]} 39. Kf1 {[%clk 0:00:28]}  Rd4 {[%clk 0:00:02]} 40. Ke2 {[%clk 0:00:27]}  Ra4 {[%clk 0:00:02]} 41. Ke3 {[%clk 0:00:21]}  Ra3+ {[%clk 0:00:02]} 42. Ke2 {[%clk 0:00:22]}  Kf6 {[%clk 0:00:03]} 43. Bxd5 {[%clk 0:00:20]}  Ke7 {[%clk 0:00:02]} 44. Bxe6 {[%clk 0:00:20]}  Kxd8 {[%clk 0:00:02]} 45. Bxf7 {[%clk 0:00:21]}  Rxh3 {[%clk 0:00:03]} 46. f3 {[%clk 0:00:21]}  Ke7 {[%clk 0:00:03]} 47. Bg6 {[%clk 0:00:21]}  Rh2+ {[%clk 0:00:03]} 48. Ke3 {[%clk 0:00:21]}  Kf6 {[%clk 0:00:04]} 49. Be8 {[%clk 0:00:21]}  Ke5 {[%clk 0:00:04]} 50. Bc6 {[%clk 0:00:20]}  Rc2 {[%clk 0:00:05]} 51. Be4 {[%clk 0:00:19]}  Rc3+ {[%clk 0:00:05]} 52. Kf2 {[%clk 0:00:18]}  Kf4 {[%clk 0:00:05]} 53. Bd5 {[%clk 0:00:18]}  Rc2+ {[%clk 0:00:05]} 54. Kf1 {[%clk 0:00:18]}  Ke3 {[%clk 0:00:05]} 55. Be4 {[%clk 0:00:14]}  Rf2+ {[%clk 0:00:05]} 56. Kg1 {[%clk 0:00:15]}  Rxf3 {[%clk 0:00:06]} 57. Bxf3 {[%clk 0:00:15]}  Kxf3 {[%clk 0:00:07]} 0-1


[Site "https://www.chess.com"]